[Event "*** Titled Tuesday Blitz"]
[Site "Chess.com"]
[Date "2020.02.04"]
[Round "2"]
[White "x-3738459472"]
[Black "jefferyx"]
[Result "0-1"]
[WhiteElo "2612"]
[BlackElo "2931"]
[TimeControl "180+2"]
[EndTime "13:19:51 PST"]
[Termination "jefferyx won by resignation"]

1. d4 {[%clk 0:03:01.6]} 1... d5 {[%clk 0:03:00.8]} 2. Bf4 {[%clk 0:03:02.1]}
2... Nf6 {[%clk 0:02:58.3]} 3. e3 {[%clk 0:03:02.8]} 3... Bf5 {[%clk 0:02:59.3]}
4. c4 {[%clk 0:03:02.6]} 4... e6 {[%clk 0:03:00.4]} 5. Nc3 {[%clk 0:03:03.9]}
5... Bb4 {[%clk 0:02:59]} 6. Bd3 {[%clk 0:03:01.8]} 6... O-O {[%clk 0:02:53.4]}
7. Ne2 {[%clk 0:02:57.6]} 7... dxc4 {[%clk 0:02:53.6]} 8. Bxc4 {[%clk
0:02:58.6]} 8... c5 {[%clk 0:02:39.4]} 9. O-O {[%clk 0:02:56.8]} 9... Nc6 {[%clk
0:02:40.4]} 10. a3 {[%clk 0:02:41.7]} 10... Bxc3 {[%clk 0:02:40.6]} 11. bxc3
{[%clk 0:02:40.9]} 11... Na5 {[%clk 0:02:41.6]} 12. Bd3 {[%clk 0:02:41.4]} 12...
Rc8 {[%clk 0:02:41]} 13. Bxf5 {[%clk 0:02:41.8]} 13... exf5 {[%clk 0:02:42.9]}
14. Ng3 {[%clk 0:02:40.6]} 14... Qd7 {[%clk 0:02:06.8]} 15. Qd3 {[%clk
0:02:30.1]} 15... g6 {[%clk 0:02:04]} 16. Rfd1 {[%clk 0:02:25.4]} 16... Rfe8
{[%clk 0:01:56.4]} 17. Bg5 {[%clk 0:02:23.7]} 17... Ne4 {[%clk 0:01:56.6]} 18.
Nxe4 {[%clk 0:02:23.2]} 18... fxe4 {[%clk 0:01:58.5]} 19. Qe2 {[%clk 0:02:19.9]}
19... Qd5 {[%clk 0:01:57.8]} 20. dxc5 {[%clk 0:02:15.7]} 20... Qxg5 {[%clk
0:01:57.8]} 21. Qb5 {[%clk 0:02:16.7]} 21... Qxc5 {[%clk 0:01:57.9]} 0-1

[Event "*** Titled Tuesday Blitz"]
[Site "Chess.com"]
[Date "2020.02.04"]
[Round "2"]
[White "LogoCzar"]
[Black "EugeneRougon"]
[Result "0-1"]
[WhiteElo "2512"]
[BlackElo "2739"]
[TimeControl "180+2"]
[EndTime "13:19:52 PST"]
[Termination "EugeneRougon won by checkmate"]

1. e4 {[%clk 0:03:01.9]} 1... e6 {[%clk 0:03:00]} 2. d4 {[%clk 0:03:02.5]} 2...
d5 {[%clk 0:03:01.6]} 3. Nc3 {[%clk 0:03:03.9]} 3... Bb4 {[%clk 0:03:02.3]} 4.
e5 {[%clk 0:03:05]} 4... c5 {[%clk 0:03:03]} 5. a3 {[%clk 0:03:06.4]} 5... Bxc3+
{[%clk 0:03:04.2]} 6. bxc3 {[%clk 0:03:08.3]} 6... Ne7 {[%clk 0:03:05.6]} 7. Qg4
{[%clk 0:03:09.5]} 7... cxd4 {[%clk 0:03:04.6]} 8. Qxg7 {[%clk 0:03:04.1]} 8...
Rg8 {[%clk 0:03:05.2]} 9. Qxh7 {[%clk 0:03:05]} 9... Qc7 {[%clk 0:03:06.6]} 10.
Qd3 {[%clk 0:03:06]} 10... dxc3 {[%clk 0:03:04]} 11. Nf3 {[%clk 0:03:06.7]}
11... Nbc6 {[%clk 0:02:57]} 12. Be3 {[%clk 0:03:05.4]} 12... Nxe5 {[%clk
0:02:40]} 13. Qh7 {[%clk 0:03:04.4]} 13... Bd7 {[%clk 0:02:14.7]} 14. h4 {[%clk
0:02:50.5]} 14... O-O-O {[%clk 0:02:08.4]} 15. Nxe5 {[%clk 0:02:46.8]} 15...
Qxe5 {[%clk 0:02:09.1]} 16. Qxf7 {[%clk 0:02:47.6]} 16... Nf5 {[%clk 0:02:05.1]}
17. Qh5 {[%clk 0:02:37.2]} 17... d4 {[%clk 0:02:02.4]} 18. g4 {[%clk 0:02:32.4]}
18... dxe3 {[%clk 0:01:44.6]} 19. gxf5 {[%clk 0:02:33.2]} 19... exf2+ {[%clk
0:01:45.8]} 20. Kxf2 {[%clk 0:02:31.7]} 20... Qg3+ {[%clk 0:01:42.4]} 21. Ke2
{[%clk 0:02:27.8]} 21... Bb5# {[%clk 0:01:43.5]} 0-1

[Event "*** Titled Tuesday Blitz"]
[Site "Chess.com"]
[Date "2020.02.04"]
[Round "2"]
[White "Grandelicious"]
[Black "mishanick"]
[Result "1-0"]
[WhiteElo "2651"]
[BlackElo "2997"]
[TimeControl "180+2"]
[EndTime "13:20:05 PST"]
[Termination "Grandelicious won by resignation"]

1. Nf3 {[%clk 0:03:01.9]} 1... d5 {[%clk 0:03:00.7]} 2. g3 {[%clk 0:03:02.6]}
2... Nf6 {[%clk 0:03:02.6]} 3. Bg2 {[%clk 0:03:03.7]} 3... g6 {[%clk 0:03:04.5]}
4. c4 {[%clk 0:03:03.9]} 4... Bg7 {[%clk 0:03:06.4]} 5. cxd5 {[%clk 0:03:04.2]}
5... Nxd5 {[%clk 0:03:08.3]} 6. Nc3 {[%clk 0:03:05.8]} 6... O-O {[%clk
0:03:09.9]} 7. O-O {[%clk 0:03:01.8]} 7... c5 {[%clk 0:03:08.4]} 8. Nxd5 {[%clk
0:03:01.9]} 8... Qxd5 {[%clk 0:03:10.3]} 9. d4 {[%clk 0:03:03.1]} 9... cxd4
{[%clk 0:03:11]} 10. Be3 {[%clk 0:03:04.6]} 10... d3 {[%clk 0:02:59.3]} 11. Ne1
{[%clk 0:03:00.8]} 11... Qb5 {[%clk 0:02:57.3]} 12. Nxd3 {[%clk 0:03:00.8]}
12... Nc6 {[%clk 0:02:57.9]} 13. a4 {[%clk 0:02:46.7]} 13... Qh5 {[%clk
0:02:58.3]} 14. Rc1 {[%clk 0:02:43.8]} 14... Bg4 {[%clk 0:02:58.9]} 15. Re1
{[%clk 0:02:35.8]} 15... Rfd8 {[%clk 0:02:58.6]} 16. Rc5 {[%clk 0:02:32.7]}
16... e5 {[%clk 0:02:57.3]} 17. Qb3 {[%clk 0:02:29.5]} 17... Rab8 {[%clk
0:02:45.3]} 18. Bd5 {[%clk 0:02:18.8]} 18... Qf5 {[%clk 0:02:22.8]} 19. f3
{[%clk 0:02:16]} 19... Bh3 {[%clk 0:02:22.7]} 20. Nf2 {[%clk 0:02:12.2]} 20...
h5 {[%clk 0:02:02.6]} 21. Nxh3 {[%clk 0:02:06.3]} 21... Qxh3 {[%clk 0:02:04.5]}
22. Bxf7+ {[%clk 0:02:07.3]} 22... Kh7 {[%clk 0:02:04.5]} 23. Be6 {[%clk
0:02:08.8]} 23... Nd4 {[%clk 0:01:59]} 24. Bxd4 {[%clk 0:02:07.1]} 1-0

[Event "*** Titled Tuesday Blitz"]
[Site "Chess.com"]
[Date "2020.02.04"]
[Round "2"]
[White "David_Paravyan"]
[Black "nurgyulsalimova"]
[Result "1-0"]
[WhiteElo "2860"]
[BlackElo "2573"]
[TimeControl "180+2"]
[EndTime "13:20:38 PST"]
[Termination "David_Paravyan won by resignation"]

1. e4 {[%clk 0:03:01.9]} 1... e5 {[%clk 0:02:59.6]} 2. Nf3 {[%clk 0:03:03]} 2...
Nc6 {[%clk 0:03:00.5]} 3. Bb5 {[%clk 0:03:03.8]} 3... a6 {[%clk 0:03:00.2]} 4.
Ba4 {[%clk 0:03:04.6]} 4... g6 {[%clk 0:02:57.2]} 5. d4 {[%clk 0:03:05.1]} 5...
exd4 {[%clk 0:02:57]} 6. Nxd4 {[%clk 0:03:06.5]} 6... Bg7 {[%clk 0:02:57.4]} 7.
Nxc6 {[%clk 0:03:08.1]} 7... bxc6 {[%clk 0:02:53.1]} 8. O-O {[%clk 0:03:06.1]}
8... Ne7 {[%clk 0:02:54.2]} 9. f4 {[%clk 0:03:05.2]} 9... d5 {[%clk 0:02:33.8]}
10. f5 {[%clk 0:03:01.7]} 10... f6 {[%clk 0:02:21]} 11. fxg6 {[%clk 0:02:42.8]}
11... hxg6 {[%clk 0:02:11.6]} 12. exd5 {[%clk 0:02:43.4]} 12... O-O {[%clk
0:02:11.3]} 13. dxc6 {[%clk 0:02:41.3]} 13... Qxd1 {[%clk 0:02:09.1]} 14. Rxd1
{[%clk 0:02:43.2]} 14... Bg4 {[%clk 0:02:10.4]} 15. Re1 {[%clk 0:02:40.3]} 15...
Rfe8 {[%clk 0:02:07.1]} 16. Nc3 {[%clk 0:02:37.7]} 16... g5 {[%clk 0:01:17.2]}
17. Be3 {[%clk 0:02:31.9]} 17... Rab8 {[%clk 0:01:10.2]} 18. Bc5 {[%clk
0:02:31.4]} 18... Ng6 {[%clk 0:01:08.4]} 19. Bb3+ {[%clk 0:02:31.6]} 19... Kh7
{[%clk 0:01:08.3]} 20. Nd5 {[%clk 0:02:29.8]} 20... Rxe1+ {[%clk 0:01:04.9]} 21.
Rxe1 {[%clk 0:02:31.7]} 21... Rb5 {[%clk 0:01:06.2]} 22. Bd4 {[%clk 0:02:25.2]}
1-0

[Event "*** Titled Tuesday Blitz"]
[Site "Chess.com"]
[Date "2020.02.04"]
[Round "2"]
[White "Dynamikus"]
[Black "IMDT02"]
[Result "1-0"]
[WhiteElo "2778"]
[BlackElo "2533"]
[TimeControl "180+2"]
[EndTime "13:20:56 PST"]
[Termination "Dynamikus won by resignation"]

1. Nf3 {[%clk 0:03:01.9]} 1... Nf6 {[%clk 0:02:59.8]} 2. c4 {[%clk 0:03:03.8]}
2... e6 {[%clk 0:03:01.7]} 3. Nc3 {[%clk 0:03:04.7]} 3... d5 {[%clk 0:03:02.7]}
4. d4 {[%clk 0:03:04.2]} 4... Be7 {[%clk 0:03:03.5]} 5. Bg5 {[%clk 0:03:04.5]}
5... O-O {[%clk 0:03:04.6]} 6. e3 {[%clk 0:03:05.1]} 6... Nbd7 {[%clk
0:03:05.6]} 7. Qc2 {[%clk 0:03:06]} 7... h6 {[%clk 0:03:06.6]} 8. Bf4 {[%clk
0:03:05.9]} 8... c6 {[%clk 0:03:04.7]} 9. g4 {[%clk 0:02:59.4]} 9... dxc4 {[%clk
0:02:51.9]} 10. g5 {[%clk 0:02:53.6]} 10... hxg5 {[%clk 0:02:49.6]} 11. Nxg5
{[%clk 0:02:55.5]} 11... Nb6 {[%clk 0:02:42.9]} 12. Rg1 {[%clk 0:02:54.1]} 12...
Nbd5 {[%clk 0:02:33]} 13. Be5 {[%clk 0:02:49.1]} 13... g6 {[%clk 0:02:08.7]} 14.
Bxc4 {[%clk 0:02:41]} 14... Nxc3 {[%clk 0:01:48.4]} 15. bxc3 {[%clk 0:02:42.9]}
15... Kg7 {[%clk 0:00:29.1]} 16. Bxe6 {[%clk 0:02:31.4]} 16... Bd6 {[%clk
0:00:19.4]} 17. Nxf7 {[%clk 0:02:29.3]} 1-0

[Event "*** Titled Tuesday Blitz"]
[Site "Chess.com"]
[Date "2020.02.04"]
[Round "2"]
[White "Jahonas"]
[Black "GM_dmitrij"]
[Result "0-1"]
[WhiteElo "2395"]
[BlackElo "2916"]
[TimeControl "180+2"]
[EndTime "13:20:56 PST"]
[Termination "GM_dmitrij won by resignation"]

1. d4 {[%clk 0:03:01.9]} 1... Nf6 {[%clk 0:02:59.5]} 2. Nf3 {[%clk 0:03:03.1]}
2... e6 {[%clk 0:03:00.9]} 3. c3 {[%clk 0:03:04.5]} 3... d5 {[%clk 0:03:01.8]}
4. Bf4 {[%clk 0:03:05.6]} 4... c5 {[%clk 0:03:03.7]} 5. e3 {[%clk 0:03:06.3]}
5... Nc6 {[%clk 0:03:05.2]} 6. Nbd2 {[%clk 0:03:07.5]} 6... cxd4 {[%clk
0:03:05.9]} 7. exd4 {[%clk 0:03:08.4]} 7... Nh5 {[%clk 0:03:05.8]} 8. Bg3 {[%clk
0:03:08.1]} 8... Bd6 {[%clk 0:03:06]} 9. Bd3 {[%clk 0:03:07.1]} 9... Nf4 {[%clk
0:03:06.7]} 10. Bxf4 {[%clk 0:03:07.4]} 10... Bxf4 {[%clk 0:03:08.6]} 11. g3
{[%clk 0:03:08.4]} 11... Bd6 {[%clk 0:03:09.2]} 12. Kf1 {[%clk 0:03:09]} 12...
O-O {[%clk 0:03:10.8]} 13. Kg2 {[%clk 0:03:09.5]} 13... f6 {[%clk 0:03:12.4]}
14. b4 {[%clk 0:03:06.5]} 14... e5 {[%clk 0:03:13.3]} 15. b5 {[%clk 0:03:05.9]}
15... Ne7 {[%clk 0:03:13.6]} 16. dxe5 {[%clk 0:02:58.1]} 16... fxe5 {[%clk
0:03:15.5]} 17. Ng5 {[%clk 0:02:43.7]} 17... Nf5 {[%clk 0:03:08.9]} 18. h4
{[%clk 0:02:37]} 18... h6 {[%clk 0:03:08.7]} 19. Nh3 {[%clk 0:02:36.8]} 19... e4
{[%clk 0:03:09.2]} 20. Be2 {[%clk 0:02:26.4]} 20... Bxg3 {[%clk 0:03:10]} 21.
Nxe4 {[%clk 0:02:20.8]} 21... Bxf2 {[%clk 0:02:56.3]} 22. Kxf2 {[%clk
0:01:58.6]} 22... Qxh4+ {[%clk 0:02:55.8]} 23. Kg1 {[%clk 0:01:57.2]} 23... Qxe4
{[%clk 0:02:54.9]} 24. Qd3 {[%clk 0:01:52.6]} 24... Qe5 {[%clk 0:02:45.8]} 25.
Rf1 {[%clk 0:01:47.4]} 25... Be6 {[%clk 0:02:37.3]} 26. Nf4 {[%clk 0:01:47.4]}
26... Ne3 {[%clk 0:02:38.4]} 27. Rf3 {[%clk 0:01:31.4]} 27... Qg5+ {[%clk
0:02:30.4]} 28. Kf2 {[%clk 0:01:05.4]} 28... Ng4+ {[%clk 0:02:31.4]} 0-1

[Event "*** Titled Tuesday Blitz"]
[Site "Chess.com"]
[Date "2020.02.04"]
[Round "2"]
[White "WeAintSurePal"]
[Black "albano87"]
[Result "0-1"]
[WhiteElo "2388"]
[BlackElo "1904"]
[TimeControl "180+2"]
[EndTime "13:21:01 PST"]
[Termination "albano87 won by resignation"]

1. d4 {[%clk 0:03:01.9]} 1... Nf6 {[%clk 0:02:59.9]} 2. c4 {[%clk 0:02:56.2]}
2... e6 {[%clk 0:02:57.2]} 3. Nf3 {[%clk 0:02:54]} 3... b6 {[%clk 0:02:58]} 4.
g3 {[%clk 0:02:52.5]} 4... Ba6 {[%clk 0:02:55.9]} 5. Qc2 {[%clk 0:02:52.1]} 5...
d5 {[%clk 0:02:56]} 6. Nbd2 {[%clk 0:02:51.3]} 6... c6 {[%clk 0:02:56.8]} 7. Bg2
{[%clk 0:02:51.4]} 7... Bd6 {[%clk 0:02:56.8]} 8. O-O {[%clk 0:02:52.6]} 8...
O-O {[%clk 0:02:57.1]} 9. b3 {[%clk 0:02:53.7]} 9... Nbd7 {[%clk 0:02:57.4]} 10.
Bb2 {[%clk 0:02:55.1]} 10... Rc8 {[%clk 0:02:57.8]} 11. e4 {[%clk 0:02:56.5]}
11... dxe4 {[%clk 0:02:57.7]} 12. Nxe4 {[%clk 0:02:57]} 12... Nxe4 {[%clk
0:02:58.2]} 13. Qxe4 {[%clk 0:02:58.9]} 13... Nf6 {[%clk 0:02:59.5]} 14. Qe2
{[%clk 0:02:58.5]} 14... Qc7 {[%clk 0:02:56.7]} 15. Rad1 {[%clk 0:02:50.5]}
15... Rfe8 {[%clk 0:02:56]} 16. Rfe1 {[%clk 0:02:49.8]} 16... c5 {[%clk
0:02:53.5]} 17. dxc5 {[%clk 0:02:49.6]} 17... Bxc5 {[%clk 0:02:52.1]} 18. Be5
{[%clk 0:02:49.1]} 18... Qe7 {[%clk 0:02:51.7]} 19. Ng5 {[%clk 0:02:47]} 19...
h6 {[%clk 0:02:48.1]} 20. Ne4 {[%clk 0:02:45.6]} 20... Nxe4 {[%clk 0:02:47.9]}
21. Bxe4 {[%clk 0:02:46.8]} 21... Bb7 {[%clk 0:02:45.6]} 22. Bb1 {[%clk
0:02:34.2]} 22... Bb4 {[%clk 0:02:32]} 23. Rf1 {[%clk 0:02:33.7]} 23... Rcd8
{[%clk 0:02:29.3]} 24. Qc2 {[%clk 0:02:33.2]} 24... f5 {[%clk 0:02:28.1]} 25.
Qe2 {[%clk 0:02:30.1]} 25... Bd6 {[%clk 0:02:20.8]} 26. Rfe1 {[%clk 0:02:18.8]}
26... Bxe5 {[%clk 0:02:16.1]} 27. Qxe5 {[%clk 0:02:20.7]} 27... Qf6 {[%clk
0:02:10.4]} 28. Qc7 {[%clk 0:02:09]} 28... Bf3 {[%clk 0:02:07]} 29. Rd7 {[%clk
0:02:05.4]} 29... Rxd7 {[%clk 0:02:04.5]} 30. Qxd7 {[%clk 0:02:07.3]} 30... Re7
{[%clk 0:02:02.8]} 31. Qd8+ {[%clk 0:02:08.3]} 31... Kh7 {[%clk 0:02:03.2]} 32.
Bxf5+ {[%clk 0:02:03.5]} 32... Qxf5 {[%clk 0:01:57.7]} 33. Qxe7 {[%clk
0:02:01.6]} 33... Qh3 {[%clk 0:01:57.9]} 0-1

[Event "*** Titled Tuesday Blitz"]
[Site "Chess.com"]
[Date "2020.02.04"]
[Round "2"]
[White "cmpassgall"]
[Black "LuckIsMySkill"]
[Result "1-0"]
[WhiteElo "2548"]
[BlackElo "2753"]
[TimeControl "180+2"]
[EndTime "13:21:15 PST"]
[Termination "cmpassgall won by resignation"]

1. Nf3 {[%clk 0:02:50.2]} 1... c5 {[%clk 0:03:00.1]} 2. c4 {[%clk 0:02:51.1]}
2... Nc6 {[%clk 0:02:57.3]} 3. d4 {[%clk 0:02:52.2]} 3... cxd4 {[%clk
0:02:58.6]} 4. Nxd4 {[%clk 0:02:54.1]} 4... Nf6 {[%clk 0:02:58.4]} 5. Nc3 {[%clk
0:02:55.1]} 5... e6 {[%clk 0:02:59.4]} 6. g3 {[%clk 0:02:55.1]} 6... d5 {[%clk
0:02:59.9]} 7. Bg2 {[%clk 0:02:51.2]} 7... Bc5 {[%clk 0:02:48.8]} 8. Nb3 {[%clk
0:02:47]} 8... Bb4 {[%clk 0:02:49.9]} 9. cxd5 {[%clk 0:02:43.8]} 9... Nxd5
{[%clk 0:02:51.7]} 10. a3 {[%clk 0:02:37.6]} 10... Nxc3 {[%clk 0:02:40.8]} 11.
Qxd8+ {[%clk 0:02:35.1]} 11... Kxd8 {[%clk 0:02:42.7]} 12. axb4 {[%clk
0:02:36.1]} 12... Nb5 {[%clk 0:02:43.4]} 13. O-O {[%clk 0:02:34.9]} 13... f6
{[%clk 0:02:41.6]} 14. Rd1+ {[%clk 0:02:33.9]} 14... Kc7 {[%clk 0:02:42.5]} 15.
Be3 {[%clk 0:02:31.8]} 15... Rd8 {[%clk 0:02:35.3]} 16. Rxd8 {[%clk 0:02:26]}
16... Nxd8 {[%clk 0:02:36.7]} 17. Rc1+ {[%clk 0:02:22.7]} 17... Kd6 {[%clk
0:02:22.2]} 18. Bc5+ {[%clk 0:02:15.9]} 18... Kd7 {[%clk 0:02:23.1]} 19. Rd1+
{[%clk 0:02:14.2]} 19... Ke8 {[%clk 0:02:20.9]} 20. Be4 {[%clk 0:02:13.6]} 20...
g6 {[%clk 0:02:18.8]} 21. Bd3 {[%clk 0:02:03.3]} 21... Bd7 {[%clk 0:02:19.5]}
22. Nd2 {[%clk 0:02:04.6]} 22... b6 {[%clk 0:02:18.8]} 23. Ne4 {[%clk
0:01:55.9]} 23... Kf7 {[%clk 0:01:47.1]} 24. Bxb5 {[%clk 0:01:52.7]} 24... Bxb5
{[%clk 0:01:49]} 25. Nd6+ {[%clk 0:01:53.5]} 25... Ke7 {[%clk 0:01:50.1]} 26.
Nxb5+ {[%clk 0:01:54.1]} 26... bxc5 {[%clk 0:01:51.8]} 27. bxc5 {[%clk
0:01:54.6]} 27... Rb8 {[%clk 0:01:39.5]} 28. Nxa7 {[%clk 0:01:54.7]} 28... Rb7
{[%clk 0:01:40.7]} 29. Nc8+ {[%clk 0:01:53.3]} 1-0

[Event "*** Titled Tuesday Blitz"]
[Site "Chess.com"]
[Date "2020.02.04"]
[Round "2"]
[White "wolfje95"]
[Black "biostatistician"]
[Result "0-1"]
[WhiteElo "2382"]
[BlackElo "2700"]
[TimeControl "180+2"]
[EndTime "13:21:28 PST"]
[Termination "biostatistician won by resignation"]

1. e4 {[%clk 0:03:01.9]} 1... e6 {[%clk 0:03:00.4]} 2. d4 {[%clk 0:03:02.2]}
2... d5 {[%clk 0:03:02.3]} 3. Nc3 {[%clk 0:03:03.1]} 3... Nc6 {[%clk 0:03:03.6]}
4. e5 {[%clk 0:03:00.9]} 4... f6 {[%clk 0:03:04.4]} 5. exf6 {[%clk 0:02:56.3]}
5... Nxf6 {[%clk 0:03:06.3]} 6. Nf3 {[%clk 0:02:57.1]} 6... Bd6 {[%clk
0:03:06.4]} 7. Bb5 {[%clk 0:02:58.1]} 7... O-O {[%clk 0:03:07.4]} 8. O-O {[%clk
0:02:59.2]} 8... Bd7 {[%clk 0:03:05.4]} 9. Re1 {[%clk 0:02:59]} 9... Qe8 {[%clk
0:03:03.3]} 10. Bxc6 {[%clk 0:02:46.7]} 10... Bxc6 {[%clk 0:03:00.1]} 11. Ne5
{[%clk 0:02:48.1]} 11... Ne4 {[%clk 0:02:56.3]} 12. Nxe4 {[%clk 0:02:46.4]}
12... dxe4 {[%clk 0:02:56.8]} 13. Qg4 {[%clk 0:02:37.8]} 13... Bxe5 {[%clk
0:02:53.6]} 14. dxe5 {[%clk 0:02:37.8]} 14... Rf5 {[%clk 0:02:52.3]} 15. Bf4
{[%clk 0:02:29.9]} 15... Qf7 {[%clk 0:02:50.8]} 16. Bg3 {[%clk 0:02:30]} 16...
Rf8 {[%clk 0:02:49.6]} 17. Rad1 {[%clk 0:02:26.8]} 17... h5 {[%clk 0:02:39.1]}
18. Qe2 {[%clk 0:02:25.5]} 18... g5 {[%clk 0:02:37.6]} 19. h4 {[%clk 0:02:26.3]}
19... Qg6 {[%clk 0:02:32.1]} 20. Rd2 {[%clk 0:02:13.4]} 20... Kh7 {[%clk
0:02:31.5]} 21. hxg5 {[%clk 0:02:09.1]} 21... Rxg5 {[%clk 0:02:32.6]} 22. Qf1
{[%clk 0:01:51]} 22... Rg8 {[%clk 0:02:28.7]} 23. Kh1 {[%clk 0:01:19.2]} 23...
h4 {[%clk 0:02:24.8]} 24. Bxh4 {[%clk 0:01:20.2]} 24... Rh5 {[%clk 0:02:21.3]}
25. g3 {[%clk 0:00:34.7]} 25... e3+ {[%clk 0:02:22.8]} 0-1

[Event "*** Titled Tuesday Blitz"]
[Site "Chess.com"]
[Date "2020.02.04"]
[Round "2"]
[White "bait_or_mate"]
[Black "Gordima"]
[Result "0-1"]
[WhiteElo "2539"]
[BlackElo "2808"]
[TimeControl "180+2"]
[EndTime "13:22:02 PST"]
[Termination "Gordima won by resignation"]

1. d4 {[%clk 0:03:01.9]} 1... d5 {[%clk 0:02:59.8]} 2. c4 {[%clk 0:03:03.1]}
2... e6 {[%clk 0:03:01.1]} 3. Nf3 {[%clk 0:03:04.2]} 3... Nf6 {[%clk 0:03:01.8]}
4. g3 {[%clk 0:03:05.7]} 4... Bb4+ {[%clk 0:02:59.7]} 5. Bd2 {[%clk 0:03:06.1]}
5... Be7 {[%clk 0:03:00.8]} 6. Bg2 {[%clk 0:03:06.9]} 6... O-O {[%clk
0:03:02.4]} 7. O-O {[%clk 0:03:08.5]} 7... c6 {[%clk 0:03:03.6]} 8. Qc2 {[%clk
0:03:08.9]} 8... a5 {[%clk 0:03:04.1]} 9. Rd1 {[%clk 0:03:08.8]} 9... b5 {[%clk
0:03:02]} 10. cxb5 {[%clk 0:03:06.3]} 10... cxb5 {[%clk 0:03:02.8]} 11. Nc3
{[%clk 0:03:07.8]} 11... b4 {[%clk 0:03:00.1]} 12. Na4 {[%clk 0:03:08.5]} 12...
Ba6 {[%clk 0:03:00.6]} 13. Bf1 {[%clk 0:03:08.1]} 13... Nbd7 {[%clk 0:02:57.7]}
14. Rac1 {[%clk 0:03:08.6]} 14... Rc8 {[%clk 0:02:34.2]} 15. Qb1 {[%clk
0:03:00.9]} 15... Bb5 {[%clk 0:02:29.2]} 16. b3 {[%clk 0:02:34]} 16... Bd6
{[%clk 0:02:29.1]} 17. Bf4 {[%clk 0:02:20.1]} 17... Bxf4 {[%clk 0:02:24.4]} 18.
gxf4 {[%clk 0:02:22]} 18... Bxa4 {[%clk 0:02:21.1]} 19. bxa4 {[%clk 0:02:23.9]}
19... Nb6 {[%clk 0:02:17.3]} 20. Qb3 {[%clk 0:02:15.6]} 20... Qd7 {[%clk
0:02:14.3]} 21. Rc5 {[%clk 0:01:53.8]} 21... Rxc5 {[%clk 0:01:16.1]} 22. dxc5
{[%clk 0:01:55.7]} 22... Nxa4 {[%clk 0:01:17.7]} 23. Ne5 {[%clk 0:01:50.8]}
23... Qe8 {[%clk 0:01:18.8]} 24. c6 {[%clk 0:01:44.2]} 24... Nc3 {[%clk
0:01:19.7]} 25. Rc1 {[%clk 0:01:41.5]} 25... Nfe4 {[%clk 0:01:20.6]} 26. a3
{[%clk 0:01:25.4]} 26... f6 {[%clk 0:01:17.5]} 27. Nd7 {[%clk 0:01:22.8]} 27...
Qg6+ {[%clk 0:01:18.4]} 28. Bg2 {[%clk 0:01:19.2]} 28... Nxe2+ {[%clk
0:01:19.5]} 29. Kf1 {[%clk 0:01:20.1]} 29... Nd2+ {[%clk 0:01:15.5]} 30. Kxe2
{[%clk 0:01:17.8]} 30... Nxb3 {[%clk 0:01:16.4]} 0-1

[Event "*** Titled Tuesday Blitz"]
[Site "Chess.com"]
[Date "2020.02.04"]
[Round "2"]
[White "isla88"]
[Black "vovachesss"]
[Result "0-1"]
[WhiteElo "2329"]
[BlackElo "2564"]
[TimeControl "180+2"]
[EndTime "13:22:05 PST"]
[Termination "vovachesss won by resignation"]

1. c4 {[%clk 0:03:01.9]} 1... e5 {[%clk 0:02:58.6]} 2. Nc3 {[%clk 0:03:01.5]}
2... Nc6 {[%clk 0:02:59.8]} 3. Nf3 {[%clk 0:03:01.4]} 3... Bb4 {[%clk
0:02:59.1]} 4. Qc2 {[%clk 0:03:00.3]} 4... Nf6 {[%clk 0:02:57.6]} 5. e3 {[%clk
0:03:01.5]} 5... O-O {[%clk 0:02:57.7]} 6. Nd5 {[%clk 0:03:01.4]} 6... Be7
{[%clk 0:02:56.6]} 7. a3 {[%clk 0:02:38.3]} 7... Re8 {[%clk 0:02:44]} 8. Bd3
{[%clk 0:02:31.7]} 8... g6 {[%clk 0:02:16.4]} 9. h4 {[%clk 0:02:21.3]} 9... d6
{[%clk 0:02:08.8]} 10. Nxe7+ {[%clk 0:02:12.3]} 10... Qxe7 {[%clk 0:02:09]} 11.
Be2 {[%clk 0:01:59.1]} 11... Bg4 {[%clk 0:02:01]} 12. d3 {[%clk 0:01:44]} 12...
e4 {[%clk 0:01:47.5]} 13. dxe4 {[%clk 0:01:43.8]} 13... Nxe4 {[%clk 0:01:49.4]}
14. Nd2 {[%clk 0:01:18]} 14... Nxf2 {[%clk 0:01:40.1]} 15. O-O {[%clk 0:00:52]}
15... Nh3+ {[%clk 0:01:16]} 16. gxh3 {[%clk 0:00:47.4]} 16... Qxe3+ {[%clk
0:01:15.1]} 17. Rf2 {[%clk 0:00:45.4]} 17... Nd4 {[%clk 0:01:06.4]} 0-1